bitfinex/quotes_BTCUSD_20250831
["timestamp","ask_amount","ask_price","bid_price","bid_amount"]
[1756638603062,0.72186604,108730.0,108720.0,1e-08]
[1756638603562,0.70863813,108730.0,108720.0,1e-08]
[1756638606950,0.71157813,108730.0,108720.0,1e-08]
[1756638608309,0.18395879,108720.0,108710.0,0.00155058]
[1756638608512,0.18395879,108720.0,108710.0,0.09467362]
[1756638608750,0.18395879,108720.0,108710.0,0.09677362]
[1756638609367,0.18495879,108720.0,108710.0,0.09677362]
[1756638612510,0.18495879,108720.0,108710.0,0.10645098]
[1756638617125,0.18695879,108720.0,108710.0,0.09677362]
[1756638623715,0.18695879,108720.0,108710.0,0.09522304]
[1756638624861,0.18695879,108720.0,108710.0,0.09840304]
[1756638625618,0.18495879,108720.0,108710.0,0.09840304]
[1756638629371,0.18495879,108720.0,108710.0,0.09940304]
[1756638629538,0.18495879,108720.0,108710.0,0.10934334]
[1756638630518,0.21261079,108720.0,108710.0,0.10934334]
[1756638632331,0.21464079,108720.0,108710.0,0.09412304]
[1756638634421,0.21464079,108720.0,108710.0,0.09627304]
[1756638634826,0.21464079,108720.0,108710.0,0.09945304]
[1756638642153,0.21261079,108720.0,108710.0,0.09945304]
[1756638643764,0.21261079,108720.0,108710.0,0.10175273]
[1756638643963,0.21261079,108720.0,108710.0,0.1300493]
[1756638651152,0.21466079,108720.0,108710.0,0.1300493]
[1756638654901,0.21466079,108720.0,108710.0,0.12774961]
[1756638655430,0.21466079,108720.0,108710.0,0.28130961]
[1756638656242,0.21466079,108720.0,108710.0,0.12456961]
[1756638656402,0.21466079,108720.0,108710.0,0.24768304]
[1756638658911,0.21466079,108720.0,108710.0,0.24969304]
[1756638659221,0.21466079,108720.0,108710.0,0.25277304]
[1756638666515,0.21466079,108720.0,108710.0,0.24768304]
[1756638666667,0.21466079,108720.0,108710.0,0.24969304]
[1756638667029,0.21466079,108720.0,108710.0,0.28081564]
[1756638676749,0.21466079,108720.0,108710.0,0.12725564]
[1756638676968,0.21466079,108720.0,108710.0,0.25277304]
[1756638678849,0.21261079,108720.0,108710.0,0.25277304]
[1756638679052,0.21466079,108720.0,108710.0,0.25277304]
[1756638682523,0.21261079,108720.0,108710.0,0.25277304]
[1756638689125,0.21261079,108720.0,108710.0,0.25273304]
[1756638689323,0.21261079,108720.0,108710.0,0.28077164]
[1756638693101,0.21458079,108720.0,108710.0,0.28077164]
[1756638694379,0.21261079,108720.0,108710.0,0.28077164]
[1756638699795,0.21458079,108720.0,108710.0,0.28077164]
[1756638700424,0.21458079,108720.0,108710.0,0.27769164]
[1756638700639,0.21458079,108720.0,108710.0,0.27568164]
[1756638700950,0.21764079,108720.0,108710.0,0.27568164]
[1756638701568,0.21764079,108720.0,108710.0,0.12216164]
[1756638701790,0.21764079,108720.0,108710.0,0.24764304]
[1756638701994,0.21458079,108720.0,108710.0,0.24764304]
[1756638702144,0.21458079,108720.0,108710.0,0.24965304]
[1756638702344,0.21458079,108720.0,108710.0,0.25278304]
[1756638703730,0.21458079,108720.0,108710.0,0.24965304]
[1756638704239,0.21458079,108720.0,108710.0,0.25278304]
[1756638704649,0.21261079,108720.0,108710.0,0.25278304]
[1756638706472,0.21458079,108720.0,108710.0,0.25278304]
[1756638706702,0.21458079,108720.0,108710.0,0.28082664]
[1756638709641,0.21261079,108720.0,108710.0,0.28082664]
[1756638714634,0.21464079,108720.0,108710.0,0.28082664]
[1756638716760,0.21261079,108720.0,108710.0,0.28082664]
[1756638719110,0.21464079,108720.0,108710.0,0.28082664]
[1756638719314,0.21464079,108720.0,108710.0,0.28182664]
[1756638720605,0.21261079,108720.0,108710.0,0.28182664]
[1756638721170,0.21464079,108720.0,108710.0,0.12316664]
[1756638721411,0.21464079,108720.0,108710.0,0.25062304]
[1756638722001,0.21464079,108720.0,108710.0,0.25362304]
[1756638722204,0.21464079,108720.0,108710.0,0.10014304]
[1756638722411,0.21464079,108720.0,108710.0,0.24860304]
[1756638725324,0.21464079,108720.0,108710.0,0.25062304]
[1756638725768,0.21464079,108720.0,108710.0,0.25362304]
[1756638726413,0.21464079,108720.0,108710.0,0.25062304]
[1756638730391,0.52397571,108710.0,108700.0,0.003]
[1756638730642,0.52397571,108710.0,108700.0,0.24950764]
[1756638730984,0.52397571,108710.0,108700.0,0.25152764]
[1756638731115,0.55162771,108710.0,108700.0,0.25152764]
[1756638731321,0.18399264,108700.0,108690.0,0.098412]
[1756638731681,0.52709264,108700.0,108690.0,0.24646001]
[1756638731901,0.52912264,108700.0,108690.0,0.24646001]
[1756638732075,0.55677864,108700.0,108690.0,0.24646001]
[1756638732479,0.55677864,108700.0,108690.0,0.24746001]
[1756638732877,0.34773191,108700.0,108690.0,0.09398001]
[1756638733082,0.53172455,108700.0,108690.0,0.24746001]
[1756638733529,0.53172455,108700.0,108690.0,0.25046001]
[1756638733958,0.53172455,108700.0,108690.0,0.004]
[1756638734160,0.53172455,108700.0,108690.0,0.15348]
[1756638734487,0.53272455,108700.0,108690.0,0.15348]
[1756638735511,0.53172455,108700.0,108690.0,0.15348]
[1756638735797,0.53272455,108700.0,108690.0,0.15348]
[1756638736003,0.54673758,108700.0,108690.0,0.15348]
[1756638744315,0.18402649,108680.0,108670.0,0.1720713]
[1756638744651,0.18402649,108680.0,108670.0,0.45987044]
[1756638744994,0.18402649,108680.0,108670.0,0.38775614]
[1756638745639,0.18402649,108680.0,108670.0,0.38875614]
[1756638746401,0.18402649,108680.0,108670.0,0.39175614]
[1756638748063,0.18402649,108680.0,108670.0,0.39021614]
[1756638750506,0.18402649,108680.0,108670.0,0.36255914]
[1756638751103,0.18402649,108680.0,108670.0,0.20907914]
[1756638751412,0.18402649,108680.0,108670.0,0.36255914]
[1756638758852,0.18718649,108680.0,108670.0,0.36255914]
[1756638760926,0.18402649,108680.0,108670.0,0.36255914]
[1756638763881,0.18718649,108680.0,108670.0,0.36255914]
[1756638768286,0.18918649,108680.0,108670.0,0.36255914]
[1756638770557,0.18918649,108680.0,108670.0,0.36055914]
[1756638770753,0.18918649,108680.0,108670.0,0.36258914]
[1756638770978,0.18918649,108680.0,108670.0,0.39024614]
[1756638771184,0.18918649,108680.0,108670.0,0.36258914]
[1756638772769,0.18718649,108680.0,108670.0,0.36258914]
[1756638773205,0.18914649,108680.0,108670.0,0.36258914]
[1756638777368,0.18914649,108680.0,108670.0,0.36055914]
[1756638779088,0.18914649,108680.0,108670.0,0.36258914]
[1756638781405,0.18914649,108680.0,108670.0,0.32122001]
[1756638783807,0.18914649,108680.0,108670.0,0.32325001]
[1756638785150,0.18718649,108680.0,108670.0,0.32325001]
[1756638785813,0.18402649,108680.0,108670.0,0.32325001]
[1756638786532,0.18402649,108680.0,108670.0,0.32479001]
[1756638786769,0.18402649,108680.0,108670.0,0.36005471]
[1756638787523,0.18402649,108680.0,108670.0,0.35851471]
[1756638790964,0.18402649,108680.0,108670.0,0.38617271]
[1756638792672,0.18402649,108680.0,108670.0,0.38317271]
[1756638803652,0.18902649,108680.0,108670.0,0.38317271]
[1756638804259,0.18902649,108680.0,108670.0,0.38313271]
[1756638805018,0.18902649,108680.0,108670.0,0.22766271]
[1756638805226,0.18902649,108680.0,108670.0,0.34583801]
[1756638807274,0.18902649,108680.0,108670.0,0.34445765]
[1756638808040,0.18902649,108680.0,108670.0,0.34646765]
[1756638810553,0.18705649,108680.0,108670.0,0.34646765]
[1756638811494,0.18402421,108690.0,108670.0,0.36894647]
[1756638811692,0.18402421,108690.0,108680.0,0.09528034]
[1756638812145,0.18402421,108690.0,108680.0,0.12494334]
[1756638814041,0.18705421,108690.0,108680.0,0.12264301]
[1756638814242,0.18705421,108690.0,108680.0,0.12364301]
[1756638814761,0.18402421,108690.0,108680.0,0.12594334]
[1756638814964,0.18402421,108690.0,108680.0,0.18117186]
[1756638815576,0.18599421,108690.0,108680.0,0.18117186]
[1756638815777,0.18902421,108690.0,108680.0,0.17887153]
[1756638820172,0.18705421,108690.0,108680.0,0.17887153]
[1756638820376,0.18902421,108690.0,108680.0,0.17887153]
[1756638821611,0.18902421,108690.0,108680.0,0.33231153]
[1756638821934,0.18902421,108690.0,108680.0,0.17686153]
[1756638822109,0.18902421,108690.0,108680.0,0.27507301]
[1756638828033,0.18902421,108690.0,108680.0,0.12163301]
[1756638828271,0.18902421,108690.0,108680.0,0.27507301]
[1756638840926,0.18402421,108690.0,108680.0,0.27703301]
[1756638841291,0.18402421,108690.0,108680.0,0.31362216]
[1756638842491,0.18402421,108690.0,108680.0,0.38438216]
[1756638845091,0.50253835,108700.0,108680.0,0.38438216]
[1756638845301,0.18402421,108690.0,108680.0,0.38438216]
[1756638845497,0.18402421,108690.0,108680.0,0.35672916]
[1756638845704,0.18402421,108690.0,108680.0,0.38438316]
[1756638846564,0.18717421,108690.0,108680.0,0.38438316]
[1756638848644,0.18933421,108690.0,108680.0,0.38438316]
[1756638848820,0.18933421,108690.0,108680.0,0.38242316]
[1756638858010,0.18933421,108690.0,108680.0,0.38438316]
[1756638858225,0.18402421,108690.0,108680.0,0.38438316]
[1756638859058,0.18933421,108690.0,108680.0,0.38438316]
[1756638859240,0.18717421,108690.0,108680.0,0.38438316]
[1756638859394,0.18402421,108690.0,108680.0,0.38438316]
[1756638866454,0.18907421,108690.0,108680.0,0.38438316]
[1756638869533,0.18907421,108690.0,108680.0,0.22898316]
[1756638869741,0.18907421,108690.0,108680.0,0.38238316]
[1756638871993,0.18907421,108690.0,108680.0,0.22898316]
[1756638872301,0.18907421,108690.0,108680.0,0.38238316]
[1756638874971,0.18907421,108690.0,108680.0,0.22898316]
[1756638875188,0.18907421,108690.0,108680.0,0.38238316]
[1756638886174,0.18907421,108690.0,108680.0,0.22898316]
[1756638886397,0.18907421,108690.0,108680.0,0.38238316]
[1756638890290,0.18907421,108690.0,108680.0,0.22898316]
[1756638890492,0.18907421,108690.0,108680.0,0.38238316]
[1756638891731,0.18907421,108690.0,108680.0,0.34579401]
[1756638892895,0.18907421,108690.0,108680.0,0.31814001]
[1756638896339,0.22220196,108700.0,108680.0,0.31814001]
[1756638896547,0.18600421,108690.0,108680.0,0.31814001]
[1756638897127,0.18600421,108690.0,108680.0,0.31714001]
[1756638897330,0.18600421,108690.0,108680.0,0.35161971]
[1756638898304,0.18913421,108690.0,108680.0,0.35161971]
[1756638899406,0.18913421,108690.0,108680.0,0.35261971]
[1756638902078,0.18913421,108690.0,108680.0,0.31814001]
[1756638902237,0.18913421,108690.0,108680.0,0.24738001]
[1756638902637,0.21679121,108690.0,108680.0,0.24738001]
[1756638903951,0.21679121,108690.0,108680.0,0.09398001]
[1756638904577,0.21679121,108690.0,108680.0,0.24738001]
[1756638904886,0.55679121,108690.0,108680.0,0.24738001]
[1756638906823,0.55679121,108690.0,108680.0,0.001]
[1756638907040,0.55679121,108690.0,108680.0,0.1544]
[1756638907448,0.55679121,108690.0,108680.0,0.001]
[1756638909152,0.52402649,108680.0,108670.0,0.1534]
[1756638909316,0.52913649,108680.0,108670.0,0.09298001]
[1756638909520,0.52913649,108680.0,108670.0,0.24638001]
[1756638909720,0.55679849,108680.0,108670.0,0.24638001]
[1756638910536,0.55679849,108680.0,108670.0,0.24938001]
[1756638911183,0.55679849,108680.0,108670.0,0.25038001]
[1756638911393,0.55679849,108680.0,108670.0,0.1574]
[1756638911780,0.55679849,108680.0,108670.0,0.004]
[1756638911986,0.55679849,108680.0,108670.0,0.1574]
[1756638913838,0.71019849,108680.0,108670.0,0.004]
[1756638916241,0.71019849,108680.0,108670.0,1e-08]
[1756638917504,0.71019849,108680.0,108670.0,0.00100001]
[1756638917668,0.71019849,108680.0,108670.0,0.001]
[1756638918509,0.55679849,108680.0,108670.0,0.001]
[1756638918716,0.71019849,108680.0,108670.0,0.001]
[1756638921361,0.71019849,108680.0,108670.0,1e-08]
[1756638923959,0.18406037,108660.0,108650.0,0.15666889]
[1756638924164,0.18406037,108660.0,108650.0,0.29517819]
[1756638924373,0.18406037,108660.0,108650.0,0.29731819]
[1756638924586,0.52406037,108660.0,108650.0,0.29731819]
[1756638924797,0.52617037,108660.0,108650.0,0.14391819]
[1756638925196,0.55383537,108660.0,108650.0,0.14639508]
[1756638925842,0.55383537,108660.0,108650.0,0.14439508]
[1756638926189,0.55383537,108660.0,108650.0,0.14639508]
[1756638926579,0.55383537,108660.0,108650.0,0.14439508]
[1756638927219,0.71029537,108660.0,108650.0,0.00067578]
[1756638927600,0.71029537,108660.0,108650.0,0.00167578]
[1756638928179,0.71029537,108660.0,108650.0,0.00067578]
[1756638928527,0.71029537,108660.0,108650.0,0.00167578]
[1756638929722,0.52407731,108650.0,108640.0,0.07403]
[1756638929934,0.52407731,108650.0,108640.0,0.09629769]
[1756638930146,0.52618731,108650.0,108640.0,0.09843769]
[1756638930346,0.55385431,108650.0,108640.0,0.09843769]
[1756638931087,0.55385431,108650.0,108640.0,0.10043769]
[1756638931500,0.55385431,108650.0,108640.0,0.10243769]
[1756638931703,0.55385431,108650.0,108640.0,0.09936769]
[1756638932273,0.55691431,108650.0,108640.0,0.00424768]
[1756638932962,0.55691431,108650.0,108640.0,0.00024768]
[1756638933163,0.55691431,108650.0,108640.0,0.00238768]
[1756638933745,0.55691431,108650.0,108640.0,0.00024768]
[1756638934378,0.55385431,108650.0,108640.0,0.00545768]
[1756638934581,0.55174431,108650.0,108640.0,0.00545768]
[1756638936073,0.55385431,108650.0,108640.0,0.00545768]
[1756638936274,0.71035431,108650.0,108640.0,0.00238768]
[1756638937227,0.71035431,108650.0,108640.0,0.00024768]
[1756638939284,0.52409425,108640.0,108630.0,0.00213394]
[1756638939626,0.52409425,108640.0,108630.0,0.09511395]
[1756638939829,0.52409425,108640.0,108630.0,0.09725395]
[1756638940438,0.53588667,108640.0,108630.0,0.09725395]
[1756638941534,0.53799667,108640.0,108630.0,0.09612001]
[1756638941737,0.54105667,108640.0,108630.0,0.09612001]
[1756638941895,0.54105667,108640.0,108630.0,0.09812001]
[1756638942098,0.54105667,108640.0,108630.0,0.09598001]
[1756638942477,0.56872667,108640.0,108630.0,0.09598001]
[1756638942883,0.56872667,108640.0,108630.0,0.09498001]
[1756638943133,0.56872667,108640.0,108630.0,0.09298001]
[1756638947445,0.5241112,108630.0,108620.0,0.2244]
[1756638947646,0.5241112,108630.0,108620.0,0.31965175]
[1756638947852,0.5262212,108630.0,108620.0,0.31965175]
[1756638948520,0.5262212,108630.0,108620.0,0.32372175]
[1756638948982,0.5241112,108630.0,108620.0,0.32572175]
[1756638949598,0.5292812,108630.0,108620.0,0.09631175]
[1756638949971,0.5569542,108630.0,108620.0,0.00333174]
[1756638951362,0.7103942,108630.0,108620.0,0.00333174]
[1756638951766,0.79869052,108630.0,108620.0,0.00333174]
[1756638952213,0.79869052,108630.0,108620.0,0.00233174]
[1756638952410,0.79869052,108630.0,108620.0,0.00033174]
[1756638952620,0.7103942,108630.0,108620.0,0.00033174]
[1756638953683,0.18412815,108620.0,108610.0,0.0002]
[1756638953896,0.5241451,108610.0,108600.0,0.22751]
[1756638954101,0.5241451,108610.0,108600.0,0.09830001]
[1756638954522,0.5262951,108610.0,108600.0,0.09318001]
[1756638954744,0.5294351,108610.0,108600.0,0.09318001]
[1756638955169,0.5294351,108610.0,108600.0,0.09523001]
[1756638955761,0.5294351,108610.0,108600.0,0.09623001]
[1756638956091,0.5294351,108610.0,108600.0,0.09723001]
[1756638959995,0.5294351,108610.0,108600.0,0.09518001]
[1756638960430,0.5294351,108610.0,108600.0,0.09723001]
[1756638960672,0.5294351,108610.0,108600.0,0.00425]
[1756638961150,0.5294351,108610.0,108600.0,0.0022]
[1756638961941,0.5518241,108610.0,108600.0,0.00425]
[1756638962149,0.5518241,108610.0,108600.0,0.17340203]
[1756638962370,0.5241451,108610.0,108600.0,0.20608623]
[1756638962695,0.1841451,108610.0,108600.0,0.23145921]
[1756638963236,0.1841451,108610.0,108600.0,0.25239803]
[1756638971064,0.1862951,108610.0,108600.0,0.37008383]
[1756638971492,0.1841451,108610.0,108600.0,0.37315383]
[1756638978182,0.1841451,108610.0,108600.0,0.37215383]
[1756638978397,0.1841451,108610.0,108600.0,0.37115383]
[1756638984631,0.1862051,108610.0,108600.0,0.34714501]
[1756638984785,0.1894451,108610.0,108600.0,0.34509501]
[1756638985319,0.1894451,108610.0,108600.0,0.37991051]
[1756638986451,0.1894451,108610.0,108600.0,0.38188051]
[1756638987537,0.1894051,108610.0,108600.0,0.38188051]
[1756638990357,0.1894051,108610.0,108600.0,0.34509501]
[1756638990584,0.1894051,108610.0,108600.0,0.19165501]
[1756638990813,0.1894051,108610.0,108600.0,0.31742001]
[1756638991473,0.1862051,108610.0,108600.0,0.31742001]
[1756638993183,0.1862051,108610.0,108600.0,0.09318001]
[1756638993388,0.1862051,108610.0,108600.0,0.25901151]
[1756638994278,0.1862051,108610.0,108600.0,0.26207151]
[1756638994474,0.1862051,108610.0,108600.0,0.25901151]
[1756638998848,0.1862051,108610.0,108600.0,0.26404151]
[1756639000012,0.1862051,108610.0,108600.0,0.25901151]
[1756639001252,0.1862051,108610.0,108600.0,0.26207151]
[1756639001487,0.5281651,108610.0,108600.0,0.15364]
[1756639001894,0.5281651,108610.0,108600.0,0.0002]
[1756639002101,0.5262051,108610.0,108600.0,0.0002]
[1756639003576,0.18416206,108600.0,108590.0,0.15553067]
[1756639003755,0.18416206,108600.0,108590.0,0.24865382]
[1756639003903,0.18416206,108600.0,108590.0,0.2853571]
[1756639004941,0.18416206,108600.0,108590.0,0.2863571]
[1756639005772,0.18622206,108600.0,108590.0,0.2863571]
[1756639005983,0.18622206,108600.0,108590.0,0.13388643]
[1756639006221,0.18622206,108600.0,108590.0,0.27830315]
[1756639006373,0.18622206,108600.0,108590.0,0.27930315]
[1756639006573,0.52622206,108600.0,108590.0,0.24856315]
[1756639007404,0.52622206,108600.0,108590.0,0.24756315]
[1756639007810,0.52622206,108600.0,108590.0,0.24656315]
[1756639007990,0.52622206,108600.0,108590.0,0.28139347]
[1756639009698,0.52622206,108600.0,108590.0,0.18841346]
[1756639011099,0.52622206,108600.0,108590.0,0.15358314]
[1756639012893,0.52622206,108600.0,108590.0,0.15677314]
[1756639013167,0.52622206,108600.0,108590.0,0.00014314]
[1756639013299,0.52818206,108600.0,108590.0,0.00014314]
[1756639014531,0.52918206,108600.0,108590.0,0.00014314]
[1756639014744,0.18417902,108590.0,108580.0,1e-08]
[1756639014966,0.33761902,108590.0,108580.0,4.769e-05]
[1756639015173,0.33961902,108590.0,108580.0,4.769e-05]
[1756639017131,0.34163902,108590.0,108580.0,4.769e-05]
[1756639017320,0.34263902,108590.0,108580.0,4.769e-05]
[1756639020461,0.34061902,108590.0,108580.0,4.769e-05]
[1756639020663,0.3245726,108590.0,108580.0,4.769e-05]
[1756639020862,0.3265926,108590.0,108580.0,4.769e-05]
[1756639023032,0.6665926,108590.0,108580.0,4.769e-05]
[1756639024271,0.6665926,108590.0,108580.0,1e-08]
[1756639024888,0.18419598,108580.0,108570.0,1e-08]
[1756639025115,0.18419598,108580.0,108540.0,0.071]
[1756639025116,0.52424689,108550.0,108540.0,0.071]
[1756639025343,0.52424689,108550.0,108540.0,0.09534323]
[1756639025671,0.52424689,108550.0,108540.0,0.09853323]
[1756639026536,0.53475261,108550.0,108540.0,0.09853323]
[1756639027118,0.53475261,108550.0,108540.0,0.10053323]
[1756639027322,0.53475261,108550.0,108540.0,0.10253323]
[1756639027838,0.53475261,108550.0,108540.0,0.10053323]
[1756639028054,0.53475261,108550.0,108540.0,0.10253323]
[1756639028259,0.53673261,108550.0,108540.0,0.10253323]
[1756639029591,0.53673261,108550.0,108540.0,0.00955322]
[1756639030221,0.53673261,108550.0,108540.0,0.00434322]
[1756639032180,0.69069261,108550.0,108540.0,0.00434322]
[1756639032596,0.53673261,108550.0,108540.0,0.00434322]
[1756639032902,0.69069261,108550.0,108540.0,0.00234322]
[1756639033104,0.69069261,108550.0,108540.0,0.00134322]
[1756639033252,0.69069261,108550.0,108540.0,0.00234322]
[1756639033451,0.69069261,108550.0,108540.0,0.00134322]
[1756639033893,0.69073261,108550.0,108540.0,0.00755322]
[1756639035187,0.53673261,108550.0,108540.0,0.00755322]
[1756639035416,0.69073261,108550.0,108540.0,0.00755322]
[1756639035833,0.69077261,108550.0,108540.0,0.00755322]
[1756639036216,0.68879261,108550.0,108540.0,0.00755322]
[1756639037964,0.53475261,108550.0,108540.0,0.00755322]
[1756639038112,0.68875261,108550.0,108540.0,0.00755322]
[1756639039027,0.53475261,108550.0,108540.0,0.00755322]
[1756639039289,0.68875261,108550.0,108540.0,0.00755322]
[1756639040456,0.69073261,108550.0,108540.0,0.00755322]
[1756639041658,0.53673261,108550.0,108540.0,0.00755322]
[1756639041863,0.69077261,108550.0,108540.0,0.00755322]
[1756639044017,0.69077261,108550.0,108540.0,0.00234322]
[1756639044627,0.69077261,108550.0,108540.0,0.00742322]
[1756639045567,0.69077261,108550.0,108540.0,0.03511722]
[1756639046487,0.69073261,108550.0,108540.0,0.03511722]
[1756639049271,0.69073261,108550.0,108540.0,0.03003722]
[1756639050875,0.69073261,108550.0,108540.0,0.00234322]
[1756639051294,0.69073261,108550.0,108540.0,0.00742322]
[1756639052677,0.69073261,108550.0,108540.0,0.00642322]
[1756639053098,0.69073261,108550.0,108540.0,0.00542322]
[1756639053338,0.69073261,108550.0,108540.0,0.00034322]
[1756639053636,0.69173261,108550.0,108540.0,0.00034322]
[1756639054361,0.69173261,108550.0,108540.0,0.00327322]
[1756639054878,0.69173261,108550.0,108540.0,0.00034322]
[1756639057923,0.75047148,108550.0,108540.0,0.00034322]
[1756639058139,0.75047148,108550.0,108540.0,1e-08]
[1756639058347,0.69378261,108550.0,108540.0,1e-08]
[1756639060355,0.18426386,108540.0,108530.0,1e-08]
[1756639060557,0.33826386,108540.0,108530.0,1e-08]
[1756639060765,0.18828386,108540.0,108530.0,1e-08]
[1756639060975,0.34024386,108540.0,108530.0,1e-08]
[1756639061407,0.7063238,108540.0,108530.0,1e-08]
[1756639061840,0.7102168,108540.0,108530.0,1e-08]
[1756639062341,0.7810568,108540.0,108530.0,1e-08]
[1756639062563,5.7810568,108540.0,108530.0,1e-08]
[1756639063392,5.87503681,108540.0,108530.0,1e-08]
[1756639064618,5.88149172,108540.0,108530.0,1e-08]
[1756639064813,5.89970471,108540.0,108530.0,1e-08]
[1756639064974,5.90831101,108540.0,108530.0,1e-08]
[1756639065183,5.89970471,108540.0,108530.0,1e-08]
[1756639065809,0.52429782,108520.0,108510.0,1e-08]
[1756639066009,0.84225715,108520.0,108510.0,1e-08]
[1756639066227,0.84627715,108520.0,108510.0,1e-08]
[1756639066637,0.91711715,108520.0,108510.0,1e-08]
[1756639068753,0.79070515,108520.0,108510.0,1e-08]
[1756639068962,0.94278515,108520.0,108510.0,1e-08]
[1756639070402,0.94274515,108520.0,108510.0,1e-08]
[1756639070608,0.78866515,108520.0,108510.0,1e-08]
[1756639070809,0.94278515,108520.0,108510.0,1e-08]
[1756639072787,0.94278515,108520.0,108510.0,0.00321001]
[1756639072991,0.98393661,108520.0,108510.0,1e-08]
[1756639075725,0.82981661,108520.0,108510.0,1e-08]
[1756639075936,0.98389661,108520.0,108510.0,1e-08]
[1756639078849,0.82981661,108520.0,108510.0,1e-08]
[1756639079050,0.98389661,108520.0,108510.0,1e-08]
[1756639079896,0.98385661,108520.0,108510.0,1e-08]
[1756639080464,0.82981661,108520.0,108510.0,1e-08]
[1756639080688,0.98381661,108520.0,108510.0,1e-08]
[1756639086329,1.00101585,108520.0,108510.0,1e-08]
[1756639087375,1.00097585,108520.0,108510.0,1e-08]
[1756639087615,0.84701585,108520.0,108510.0,1e-08]
[1756639087836,1.00097585,108520.0,108510.0,1e-08]
[1756639088942,0.61035652,108520.0,108510.0,1e-08]
[1756639089143,0.74711728,108520.0,108510.0,0.00321001]
[1756639089818,0.56644928,108520.0,108510.0,0.00321001]
[1756639090018,0.73667636,108520.0,108510.0,0.00321001]
[1756639090235,0.73767636,108520.0,108510.0,0.00321001]
[1756639090442,0.73867636,108520.0,108510.0,0.00321001]
[1756639090617,0.73767636,108520.0,108510.0,0.00321001]
[1756639091025,0.73768303,108520.0,108510.0,0.00321001]
[1756639091605,0.73769136,108520.0,108510.0,0.00321001]
[1756639092027,0.73869136,108520.0,108510.0,0.00321001]
[1756639094471,0.76639536,108520.0,108510.0,0.00321001]
[1756639097832,0.74915328,108520.0,108510.0,0.00321001]
[1756639098035,0.76641281,108520.0,108510.0,0.00321001]
[1756639101472,0.74915328,108520.0,108510.0,0.00321001]
[1756639101620,0.76842196,108520.0,108510.0,0.00321001]
[1756639107431,0.61442196,108520.0,108510.0,0.00321001]
[1756639107674,0.76826196,108520.0,108510.0,0.00321001]
[1756639107905,0.76625196,108520.0,108510.0,0.00321001]
[1756639109265,0.74899328,108520.0,108510.0,0.00321001]
[1756639109915,0.56469546,108520.0,108510.0,0.00321001]
[1756639110219,0.74899328,108520.0,108510.0,0.00321001]
[1756639110964,0.25515328,108520.0,108510.0,0.00321001]
[1756639111180,0.74903328,108520.0,108510.0,0.09849395]
[1756639111408,0.55400182,108520.0,108510.0,0.09849395]
[1756639113517,0.55300182,108520.0,108510.0,0.09849395]
[1756639113696,0.55200182,108520.0,108510.0,0.09849395]
[1756639114680,0.55200182,108520.0,108510.0,0.10049395]
[1756639115826,0.55200182,108520.0,108510.0,0.10149395]
[1756639117545,0.55200182,108520.0,108510.0,0.12243277]
[1756639118407,0.55200182,108520.0,108510.0,0.45674757]
[1756639118408,0.027704,108520.0,108510.0,0.45674757]
[1756639118627,0.18429542,108530.0,108520.0,0.02093882]
[1756639118875,0.21199042,108530.0,108520.0,0.34408883]
[1756639120759,0.21199042,108530.0,108520.0,0.34608883]
[1756639120966,0.21199042,108530.0,108520.0,0.34408883]
[1756639121399,0.21199042,108530.0,108520.0,0.34708883]
[1756639122451,0.21199042,108530.0,108520.0,0.34808883]
[1756639125501,0.21199042,108530.0,108520.0,0.53238665]
[1756639125708,0.18429542,108530.0,108520.0,0.53238665]
[1756639126573,0.18429542,108530.0,108520.0,0.34808883]
[1756639127925,0.18429542,108530.0,108520.0,0.53238665]
[1756639128210,0.18429542,108530.0,108520.0,0.34808883]
[1756639129229,0.18429542,108530.0,108520.0,0.19416883]
[1756639129432,0.18429542,108530.0,108520.0,0.34832883]
[1756639130502,0.18429542,108530.0,108520.0,0.53262665]
[1756639130962,0.2185723,108540.0,108520.0,0.53262665]
[1756639131174,0.5585723,108540.0,108530.0,0.11923234]
[1756639131412,0.5585723,108540.0,108530.0,0.12118234]
[1756639131596,0.5585723,108540.0,108530.0,0.17463436]
[1756639133276,0.5585723,108540.0,108530.0,0.17563436]
[1756639133689,0.5585723,108540.0,108530.0,0.17663436]
[1756639134277,0.5585723,108540.0,108530.0,0.17433085]
[1756639134517,0.55707696,108540.0,108530.0,0.17588956]
[1756639135961,0.55907696,108540.0,108530.0,0.17588956]
[1756639136573,0.55907696,108540.0,108530.0,0.33000956]
[1756639136781,0.55907696,108540.0,108530.0,0.32770605]
[1756639140600,0.21707696,108540.0,108530.0,0.32770605]
[1756639140759,0.18938396,108540.0,108530.0,0.32770605]
[1756639141316,0.18938396,108540.0,108530.0,0.32696098]
[1756639142193,0.18938396,108540.0,108530.0,0.32688098]
[1756639143380,0.18938396,108540.0,108530.0,0.52688098]
[1756639145582,0.18938396,108540.0,108530.0,0.52684098]
[1756639149983,0.18662001,108540.0,108530.0,0.52684098]
[1756639154173,0.18862001,108540.0,108530.0,0.52684098]
[1756639154878,0.18662001,108540.0,108530.0,0.52684098]
[1756639159969,0.18662001,108540.0,108530.0,0.67684098]
[1756639160450,0.02783261,108550.0,108540.0,0.38426386]
[1756639160648,0.00014261,108550.0,108540.0,0.49476843]
[1756639161027,0.00014261,108550.0,108540.0,0.52245543]
[1756639161563,0.1843895,108550.0,108540.0,0.52245543]
[1756639162167,0.1843895,108550.0,108540.0,0.68213543]
[1756639162860,0.00114261,108550.0,108540.0,0.70307425]
[1756639163276,0.00014261,108550.0,108540.0,0.70307425]
[1756639163621,0.00014261,108550.0,108540.0,0.85307425]
[1756639164024,0.00014261,108550.0,108540.0,1.59307425]
[1756639164247,0.00014261,108550.0,108540.0,1.64407425]
[1756639164447,0.00014261,108550.0,108540.0,1.78481425]
[1756639164851,0.00014261,108550.0,108540.0,1.78581425]
[1756639165301,0.00014261,108550.0,108540.0,1.62613425]
[1756639165499,0.00014261,108550.0,108540.0,1.78625425]
[1756639165712,0.00014261,108550.0,108540.0,1.78925425]
[1756639166060,0.00014261,108550.0,108540.0,1.78825425]
[1756639167005,0.00014261,108550.0,108540.0,1.79225425]
[1756639167160,0.00014261,108550.0,108540.0,1.78925425]
[1756639167590,0.00014261,108550.0,108540.0,1.79225425]
[1756639168029,0.00014261,108550.0,108540.0,1.78925425]
[1756639168387,0.00014261,108550.0,108540.0,1.79225425]
[1756639169769,0.00014261,108550.0,108540.0,1.79249425]
[1756639172855,0.00014261,108550.0,108540.0,1.99476543]
[1756639173051,0.00014261,108550.0,108540.0,1.89767543]
[1756639173253,0.00014261,108550.0,108540.0,1.91861425]
[1756639173704,0.00014261,108550.0,108540.0,2.07929425]
[1756639174227,0.00014261,108550.0,108540.0,2.07925425]
[1756639175054,0.00014261,108550.0,108540.0,2.07917425]
[1756639177088,0.00014261,108550.0,108540.0,2.12917425]
[1756639178043,0.00014261,108550.0,108540.0,2.22626425]
[1756639180786,0.00014261,108550.0,108540.0,2.10764087]
[1756639180991,0.00014261,108550.0,108540.0,2.26852087]
[1756639184868,0.00014261,108550.0,108540.0,2.98002087]
[1756639190147,0.07632582,108590.0,108580.0,0.4]